{"text_format":"2","workbook":"xlsx","n_sheets":1,"sheets":["2019"],"not_rendered":{"charts":0,"images":0,"macros":0,"external_links":0,"defined_names":0,"comments":0,"pivot_tables":0},"unopened":[],"bounds":{"document_bytes":16777216,"sheet_cells":100000,"run_cost":"one","rows_first":2000,"rows_last":500,"rows_between":2000,"halvings":0,"cell_chars":16384,"cell_head_chars":4096},"cells_cut":0,"cells_raw":0,"read":"whole","date_system":"1900"}

{"sheet":"2019","index":0,"n_rows":81,"n_cols":9,"rows_kept":81,"cut":false,"hidden":false,"merged":[[1,2,1,8],[5,2,6,2],[5,3,6,4],[5,5,6,5],[5,6,6,6],[5,7,6,7],[5,8,6,8],[26,3,27,3],[29,2,32,2],[34,2,37,2],[7,2,13,2],[7,3,9,3],[10,3,12,3],[15,2,19,2],[15,3,16,3],[21,2,23,2],[22,3,23,3],[62,2,63,2],[65,2,66,2],[68,2,70,2],[77,2,80,2],[25,2,27,2]]}
[]
[null,null,"Расчет субсидий на выполнение муниципального задания Тонкинского муниципального района на 2019 год "]
[]
[]
[]
[null,null,"Наименование учреждения","Наименование муниципальной услуги",null,"Ед. изм. натуральных показателей","Натуральные показатели","Нормативные затраты, руб.","Сумма субсидии, руб."]
[]
[null,null,"МАОУ \"Тонкинская ОШ\"","Реализация основных общеобразовательных программ начального общего образования","Обучающиеся, за исключением обучающихся с ограниченными возможностями здоровья (ОВЗ) и детей -инвалидов","чел.",255,48132,{"$f":"G8*H8","v":12273660}]
[{"$nulls":4},"дети-инвалиды","чел.",2,55550,{"$f":"G9*H9","v":111100}]
[{"$nulls":4},"Обучающиеся с ограниченными возможностями здоровья (ОВЗ)","чел.",4,22868,91472]
[null,null,null,"Реализация основных общеобразовательных программ основного общего образования","Обучающиеся, за исключением обучающихся с ограниченными возможностями здоровья (ОВЗ) и детей -инвалидов","чел.",273,80489,21973497]
[{"$nulls":4},"дети-инвалиды","чел.",4,80686,322744]
[{"$nulls":4},"Обучающиеся с ограниченными возможностями здоровья (ОВЗ)","чел.",5,50954,254770]
[null,null,null,"Реализация основных общеобразовательных программ среднего общего образования","Обучающиеся, за исключением обучающихся с ограниченными возможностями здоровья (ОВЗ) и детей -инвалидов","чел.",47,48757,2291579]
[null,null,null,"Итого",null,null,{"$f":"SUM(G8:G14)","v":590},null,{"$f":"SUM(I8:I14)","v":37318822}]
[null,null,"МБОУ \"Пакалевская ОШ\"","Реализация основных общеобразовательных программ начального общего образования","Обучающиеся, за исключением обучающихся с ограниченными возможностями здоровья (ОВЗ) и детей -инвалидов","чел.",3,747433,2242299]
[{"$nulls":4},"Обучающиеся с ограниченными возможностями здоровья (ОВЗ)",null,2,88981,177962]
[null,null,null,"Реализация основных общеобразовательных программ основного общего образования","Обучающиеся, за исключением обучающихся с ограниченными возможностями здоровья (ОВЗ) и детей -инвалидов","чел.",4,1275979,5103916]
[null,null,null,"Реализация основных общеобразовательных программ дошкольного образования",null,"чел.",9,115364,1038276]
[null,null,null,"Присмотр и уход",null,"чел.",9,35791,322119]
[null,null,null,"Итого",null,null,{"$f":"SUM(G16:G20)","v":27},null,{"$f":"SUM(I16:I20)","v":8884572}]
[null,null,"МБОУ \"Вязовская ОШ\"","Реализация основных общеобразовательных программ начального общего образования","Обучающиеся, за исключением обучающихся с ограниченными возможностями здоровья (ОВЗ) и детей -инвалидов","чел.",20,119445,2388900]
[null,null,null,"Реализация основных общеобразовательных программ основного общего образования","Обучающиеся, за исключением обучающихся с ограниченными возможностями здоровья (ОВЗ) и детей -инвалидов","чел.",16,284600,4553600]
[{"$nulls":4},"Обучающиеся с ограниченными возможностями здоровья (ОВЗ)","чел.",1,198979,198979]
[null,null,null,"Итого",null,null,{"$f":"SUM(G22:G24)","v":37},null,{"$f":"SUM(I22:I24)","v":7141479}]
[null,null,"МБОУ \"Бердниковская ОШ\"","Реализация основных общеобразовательных программ начального общего образования","Обучающиеся, за исключением обучающихся с ограниченными возможностями здоровья (ОВЗ) и детей -инвалидов","чел.",12,121429,{"$f":"G26*H26","v":1457148}]
[null,null,null,"Реализация основных общеобразовательных программ основного общего образования","Обучающиеся, за исключением обучающихся с ограниченными возможностями здоровья (ОВЗ) и детей -инвалидов","чел.",20,239775,{"$f":"G27*H27","v":4795500}]
[{"$nulls":4},"дети-инвалиды","чел.",1,169244,169244]
[null,null,null,"Итого",null,null,{"$f":"G26+G27+G28","v":33},null,{"$f":"SUM(I26:I28)","v":6421892}]
[null,null,"МБОУ \"Пахутинская ОШ\"","Реализация основных общеобразовательных программ начального общего образования","Обучающиеся, за исключением обучающихся с ограниченными возможностями здоровья (ОВЗ) и детей -инвалидов","чел.",7,241512,1690584]
[null,null,null,"Реализация основных общеобразовательных программ основного общего образования","Обучающиеся, за исключением обучающихся с ограниченными возможностями здоровья (ОВЗ) и детей -инвалидов","чел.",7,747939,5235573]
[null,null,null,"Реализация основных общеобразовательных программ дошкольного образования",null,"чел.",6,102864,617184]
[null,null,null,"Присмотр и уход",null,"чел.",6,87753,526518]
[null,null,null,"Итого",null,null,{"$f":"SUM(G30:G33)","v":26},null,{"$f":"SUM(I30:I33)","v":8069859}]
[null,null,"МБОУ \"Большесодомовская ОШ\"","Реализация основных общеобразовательных программ начального общего образования",null,"чел.",16,133126,2130016]
[null,null,null,"Реализация основных общеобразовательных программ основного общего образования",null,"чел.",14,387079,5419106]
[null,null,null,"Реализация основных общеобразовательных программ дошкольного образования",null,"чел.",12,71875,862500]
[null,null,null,"Присмотр и уход",null,"чел.",12,50965,611580]
[null,null,null,"Итого",null,null,{"$f":"SUM(G35:G38)","v":54},null,{"$f":"SUM(I35:I38)","v":9023202}]
[null,null,"МБДОУ д/с №1 \"Теремок\"","Реализация основных общеобразовательных программ дошкольного образования",null,"чел.",85,71788,{"$f":"H40*G40","v":6101980}]
[null,null,null,"Присмотр и уход",null,"чел.",85,30464,{"$f":"H41*G41","v":2589440}]
[null,null,null,"Итого",null,null,170,null,{"$f":"SUM(I40:I41)","v":8691420}]
[null,null,"МБДОУ д/с №2 \"Малышок\"","Реализация основных общеобразовательных программ дошкольного образования",null,"чел.",42,100173,{"$f":"H43*G43","v":4207266}]
[null,null,null,"Присмотр и уход",null,"чел.",42,46712,{"$f":"H44*G44","v":1961904}]
[null,null,null,"Итого",null,null,84,null,{"$f":"SUM(I43:I44)","v":6169170}]
[null,null,"МБДОУ д/с №4 \"Солнышко\"","Реализация основных общеобразовательных программ дошкольного образования",null,"чел.",112,70833,{"$f":"H46*G46","v":7933296}]
[null,null,null,"Присмотр и уход",null,"чел.",112,31307,{"$f":"H47*G47","v":3506384}]
[null,null,null,"Итого",null,null,224,null,{"$f":"SUM(I46:I47)","v":11439680}]
[null,null,"МБДОУ д/с №5 \"Сказка\"","Реализация основных общеобразовательных программ дошкольного образования",null,"чел.",54,85850,{"$f":"H49*G49","v":4635900}]
[null,null,null,"Присмотр и уход",null,"чел.",54,40082,{"$f":"H50*G50","v":2164428}]
[null,null,null,"Итого",null,null,108,null,{"$f":"SUM(I49:I50)","v":6800328}]
[null,null,"МБДОУ д/с №8 \"Елочка\"","Реализация основных общеобразовательных программ дошкольного образования",null,"чел.",22,134374,{"$f":"H52*G52","v":2956228}]
[null,null,null,"Присмотр и уход",null,"чел.",22,40772,{"$f":"H53*G53","v":896984}]
[null,null,null,"Итого",null,null,44,null,{"$f":"SUM(I52:I53)","v":3853212}]
[null,null,"МБДОУ д/с №9 \"Василек\"","Реализация основных общеобразовательных программ дошкольного образования",null,"чел.",13,190016,{"$f":"G55*H55","v":2470208}]
[null,null,null,"Присмотр и уход",null,"чел.",13,78633,{"$f":"G56*H56","v":1022229}]
[null,null,null,"Итого",null,null,26,null,{"$f":"SUM(I55:I56)","v":3492437}]
[null,null,"МБУ ДО ЦДО","реализация дополнительных общеразвивающих программ",null,"чел.",760,10345,{"$f":"G58*H58","v":7862200}]
[null,null,null,"Итого",null,null,760,null,7862200]
[null,null,"МБУ ХЭС СО","Содержание (эксплуатация) имущества, находящегося в государственной (муниципальной ) собственности ",null,"ед.",10,1184700,{"$f":"G60*H60","v":11847000}]
[null,null,null,"Итого",null,null,10]
[null,null,"Культура",null,null,null,{"$f":"G65+G68+G72+G74+G76","v":401105},{"$f":"I62/G62","v":108.16183797260068},{"$f":"I65+I68+I72+I74+I76","v":43384254.019999996}]
[null,null,"МБУК«МЦКС»","Организация деятельности клубных формирований и формирований самодеятельного творчества\n\n",null,"ед.",144,987.5,{"$f":"G63*H63","v":142200}]
[null,null,null,"Организация и проведение культурно-массовых мероприятий",null,"чел.",182820,119.45,{"$f":"G64*H64","v":21837849}]
[null,null,"Итого:",null,null,null,{"$f":"SUM(G63:G64)","v":182964},{"$f":"I65/G65","v":120.13319013576441},{"$f":"SUM(I63:I64)","v":21980049}]
[null,null,"МБУК «НКМ»","Публичный показ музейных предметов, музейных колекций\n\n",null,"чел.",4360,304,{"$f":"G66*H66","v":1325440}]
[null,null,null,"Формирование учет, изучение, обеспечение физического сохранения и безопасности музейных предметов, музейных коллекций ",null,"ед.",10645,114.22,1215871.8999999999]
[null,null,"Итого:",null,null,null,{"$f":"SUM(G66:G67)","v":15005},{"$f":"I68/G68","v":169.3643385538154},{"$f":"SUM(I66:I67)","v":2541311.9}]
[null,null,"МБУК «МЦБС»","Библиотечное, библиографическое и информационное обслуживание пользователей библиотеки\n\n",null,"чел.",63842,49.6,{"$f":"G69*H69","v":3166563.2}]
[null,null,null,"Формирование, учет, изучение, обеспечение физического сохранения и безопасности фондов библиотек, включая оцифровку фондов \n\n",null,"ед.",123333,30.5,3761656.5]
[null,null,null,"Библиографическая обработка документов и создание каталогов ",null,"ед.",15854,276.36,4381411.4400000004]
[null,null,"Итого:",null,null,null,{"$f":"SUM(G69:G71)","v":203029},{"$f":"I72/G72","v":55.704510882681788},{"$f":"SUM(I69:I71)","v":11309631.140000001}]
[null,null,"МБУ ДО \"ДМШ\"","Реализация дополнительных общеобразовательных предпрофесиональных программ в области исскуств ",null,"чел.",62,67618.34,{"$f":"G73*H73","v":4192337.0799999996}]
[null,null,"Итого:",null,null,null,{"$f":"SUM(G73)","v":62},{"$f":"I74/G74","v":67618.34},{"$f":"SUM(I73)","v":4192337.0799999996}]
[null,null,"МБУ ДО \"ДХШ\"","Реализация дополнительных общеобразовательных предпрофесиональных программ в области исскуств ",null,"чел.",45,74687.22,{"$f":"G75*H75","v":3360924.9}]
[null,null,"Итого:",null,null,null,{"$f":"SUM(G75)","v":45},{"$f":"I76/G76","v":74687.22},{"$f":"SUM(I75)","v":3360924.9}]
[null,null,"Спорт",null,null,null,{"$f":"SUM(G78:G81)","v":149},19390.508187919462,{"$f":"SUM(I78:I81)","v":2889185.7199999997}]
[null,null,"МБУ ФСК «Кристалл».","Организация и проведение Официальных Физкультурных (физкультурно-оздоровительных) мероприятий",null,"количество мероприятий",31,83522.12,{"$f":"G78*H78","v":2589185.7199999997}]
[null,null,null,"Организация и проведение официальных спортивных мероприятий",null,"количество мероприятий",106,{"$f":"I79/G79","v":2735.8490566037735},290000]
[null,null,null,"Проведение тестирования выполнения нормативов испытаний (тестов) комплекса  ГТО   ",null,"количество мероприятий",12,833.33333333333337,10000]
[null,null,null,"Организация и проведение Физкультурных и спортивных мероприятий в рамках         Всероссийского физкультурно-спортивного комплекса «Готов к труду и обороне» (ГТО) (за исключением тестирования выполнения нормативов испытаний комплекса ГТО)",null,"количество мероприятий",0,0,{"$f":"G81*H81","v":0}]